Cogmind - Beta 17 --- EXPLORER MODE // 2026.07.28 @ 00:15:57 Player: Sulairris Result: Destroyed by as-07445 with Assembled Heavy Rifle Performance ------------- Evolutions (0) 0 Regions Visited (2) 400 Robots Destroyed (1) 5 Value Destroyed (11) 11 Prototype IDs (0) 0 Alien Tech Used (0) 0 Bonus (0) 0 TOTAL SCORE: 416 Bonus ------- None Cogmind --------- Core Integrity 0/250 Matter 226/300 Energy 99/100 System Corruption 0% Temperature Warning (339) Movement Core (250) Ox4 Location -10/Mines Parts ------- > --- POWER (1) -------- (None) > --- PROPULSION (2) --- (None) > --- UTILITY (2) ------ Medium Storage Unit Utility Shielding > --- WEAPON (3) ------- Small Laser Light Assault Rifle > --- INVENTORY (10) --- Light Ion Engine Light Treads Light Treads Targeting Computer Propulsion Shielding Assault Rifle Welding Torch Peak State ------------ > --- POWER ------------ Light Ion Engine > --- PROPULSION ------- Aluminum Leg Aluminum Leg > --- UTILITY ---------- Medium Storage Unit Signal Interpreter > --- WEAPON ----------- Small Laser Light Assault Rifle Welding Torch > --- INVENTORY -------- Light Ion Engine Light Treads Light Treads Targeting Computer Propulsion Shielding Utility Shielding Assault Rifle [Rating: 8] Favorites ----------- Power Light Ion Engine Engine Light Ion Engine Propulsion Aluminum Leg Leg Aluminum Leg Utility Medium Storage Unit Storage Medium Storage Unit Processor Signal Interpreter Protection Utility Shielding Weapon Light Assault Rifle Energy Gun Small Laser Ballistic Gun Light Assault Rifle Ballistic Cannon Light Cannon Special Weapon Welding Torch Build | -11 -10 -10 ------- Run | Yrd Mat Min Slots Evolved 1 | . 1 . Power . | . . . Propulsion . | . . . Utility . | . . . Weapon 1 | . 1 . Parts Attached 10 | 5 4 1 Power 1 | 1 . . Engine 1 | 1 . . Core . | . . . Reactor . | . . . Propulsion 2 | 2 . . Treads . | . . . Leg 2 | 2 . . Wheel . | . . . Hover . | . . . Flight . | . . . Utility 3 | 2 . 1 Device . | . . . Storage 1 | 1 . . Processor 1 | 1 . . Hackware . | . . . Protection 1 | . . 1 Artifact . | . . . Weapon 4 | . 4 . Energy Gun 1 | . 1 . Energy Cannon . | . . . Ballistic Gun 1 | . 1 . Ballistic Cannon 1 | . 1 . Launcher . | . . . Special Weapon 1 | . 1 . Impact Weapon . | . . . Slashing Weapon . | . . . Piercing Weapon . | . . . Special Melee Weapon . | . . . Unidentified Prototypes . | . . . Parts Lost 4 | . . 4 Power 1 | . . 1 Propulsion 2 | . . 2 Utility . | . . . Weapon 1 | . . 1 Highest Loss Streak 4 | . . 4 To Critical Strikes . | . . . Average Backups 7 | 5 7 7 Power . | . 1 1 Propulsion 1 | 1 2 2 Utility 2 | 1 3 2 Weapon 1 | 1 1 1 Tool/Special . | . . . Unused Backups 6 | . . 6 Power 1 | . . 1 Propulsion 2 | . . 2 Utility 2 | . . 2 Weapon 1 | . . 1 Tool/Special . | . . . Average Slot Usage (%) 91 | . 91 92 Engine 11 | . 12 9 Leg 24 | . 25 22 Storage 12 | . 12 12 Processor 11 | . 12 7 Energy Gun 10 | . 9 12 Ballistic Gun 10 | . 10 12 Ballistic Cannon 2 | . 1 9 Special Weapon 5 | . 6 . Peak Build Rating 8 | 5 8 8 Average Rating 6 | 3 7 7 On Entrance 4 | . 5 8 Avg Prop Armor Cover (%) . | . . . Naked Turns . | . . . Heaviest Build 18 | 13 18 18 Greatest Support 20 | 20 20 20 Greatest Overweight (x) . | . . . Average Overweight (x) . | . . . Largest Inventory Capacity 10 | 10 10 10 Average Capacity 9 | 8 10 10 Most Carried 9 | 9 9 8 Average Carried 7 | 6 7 7 Final Capacity 10 | 10 10 10 Final Carried 9 | 9 8 7 Class Distribution -------------------- 60% | Hacker-Gunner 39% | Hacker-Mutant Dominant Class ---------------- Hacker-Gunner | -10/Materials Hacker-Gunner | -10/Mines Resources | -11 -10 -10 ----------- Run | Yrd Mat Min Matter Collected 277 | 223 54 . Remotely . | . . . Salvage Created 113 | . 27 86 Parts 2 | . 2 . Haulers Intercepted . | . . . Recyclers Shooed . | . . . Parts Field Recycled . | . . . Retrieved Matter . | . . . Parts Self-Destructed . | . . . Prevented . | . . . Parts Restored . | . . . Kills | -11 -10 -10 ------- Run | Yrd Mat Min Combat Hostiles Destroyed 7 | . . 7 Guns 4 | . . 4 Cannons 3 | . . 3 Classes Destroyed 2 | . 1 1 Worker 1 | . 1 . Assembled 7 | . . 7 Best Kill Streak 7 | . 1 7 Combat Bots Only 7 | . . 7 Max Kills in Single Turn 2 | . 1 2 Gunslinging . | . . . Exploded . | . . . Melee . | . . . Uniques/NPCs Destroyed . | . . . Combat | -11 -10 -10 -------- Run | Yrd Mat Min Hostile Shots Fired 118 | . 6 112 Missed 29 | . 3 26 Hits 89 | . 3 86 Melee 14 | . . 14 Projectile 75 | . 3 72 Part Disruptions 3 | . . 3 Damage Taken 866 | . 19 847 Core 250 | . 11 239 Absorbed by Shields . | . . . Redirected to Shielding 12 | . . 12 Ignored by Resistances 532 | . 14 518 Core Remaining (%) 100 | 100 . . Volleys Fired 25 | . 15 10 Largest 3 | . 3 3 Hottest 90 | . 90 90 Shots Fired 57 | . 31 26 Gun 47 | . 28 19 Cannon 9 | . 2 7 Launcher . | . . . Special 1 | . 1 . Kinetic 34 | . 17 17 Thermal 23 | . 14 9 Explosive . | . . . Electromagnetic . | . . . Robot Hit Streak 17 | . 3 17 Robot Miss Streak 3 | . 3 1 Penetration Max . | . . . Secondary Targets 1 | . . 1 Max Gunslinging Chain 1 | . . 1 Shots Hit Robots 27 | . 4 23 Core Hits 18 | . 3 15 Critical Kills . | . . . Critical Parts Destroyed . | . . . Critical Strikes . | . . . Melee Attacks . | . . . Impact . | . . . Slashing . | . . . Piercing . | . . . Sneak Attacks . | . . . Combat Hostiles . | . . . Follow-up Attacks . | . . . Damage Inflicted 352 | . 65 287 Guns 232 | . 48 184 Cannons 120 | . 17 103 Explosions . | . . . Melee . | . . . Ramming . | . . . Kinetic 228 | . 41 187 Thermal 124 | . 24 100 Explosive . | . . . Electromagnetic . | . . . Impact . | . . . Slashing . | . . . Piercing . | . . . Highest Corruption . | . . . Average Corruption . | . . . Corruption Purged . | . . . Corruption Blocked . | . . . Overload Shots . | . . . Overflow Damage . | . . . Projectiles . | . . . Explosions . | . . . Melee . | . . . Knockbacks 2 | . . 2 Impact . | . . . Kinetic 2 | . . 2 Secondary . | . . . Self-Inflicted Damage . | . . . Shots . | . . . Rammed . | . . . Targets Rammed . | . . . Kicked . | . . . Crushed . | . . . Highest Temperature 349 | . 69 349 Average Temperature 96 | . 25 174 Received Heat Transfer 289 | . 9 280 Siege Activations . | . . . Martial Activations . | . . . Shielding Activations . | . . . Robots Disrupted . | . . . Combat Hostiles . | . . . Robots Corrupted . | . . . Combat Hostiles . | . . . Parts Fried . | . . . Impact Corruptions . | . . . Robots Melted . | . . . Combat Hostiles . | . . . Parts Melted . | . . . Heat Transferred 275 | . 50 225 Parts Sabotaged . | . . . Parts Stolen . | . . . Parts Stripped . | . . . Power Chain Reactions . | . . . Alert | -11 -10 -10 ------- Run | Yrd Mat Min Maximum Alert Level . | . . . Low Security (%) 100 | 100 100 100 Level 1 . | . . . Level 2 . | . . . Level 3 . | . . . Level 4 . | . . . Level 5 . | . . . High Security . | . . . Max Security . | . . . Peak Influence 5 | . 5 1 Initial 1 | . . 1 Average . | . . . Influence Increases 9 | . 9 . Destroy 0b10 Robot/NC 5 | . 5 . Disable Machine 4 | . 4 . Influence Decreases 9 | . 5 4 Entered New Map 3 | . . 3 Time Decay 6 | . 5 1 Squads Dispatched . | . . . Investigation . | . . . Extermination . | . . . Reinforcement . | . . . Assault . | . . . Garrison . | . . . Intercept . | . . . Searches Triggered . | . . . Construction Impeded . | . . . Haulers Reinforced . | . . . Active Scanning Responses . | . . . Cargo Convoy Interrupts . | . . . Stealth | -11 -10 -10 --------- Run | Yrd Mat Min Distress Signals . | . . . Communications Jammed . | . . . Distress Signals . | . . . Times Spotted 25 | . 5 20 Peak Tracking Total 19 | . 6 19 Tactical Retreats . | . . . Traps | -11 -10 -10 ------- Run | Yrd Mat Min Traps Triggered 1 | . 1 . Indirectly . | . . . Trap Hack Attempts . | . . . Triggered . | . . . Disarmed . | . . . Reprogrammed . | . . . Reused . | . . . Traps Extracted . | . . . Installed . | . . . Triggered . | . . . Machines | -11 -10 -10 ---------- Run | Yrd Mat Min Machines Disabled 1 | . 1 . Max in Single Turn 1 | . 1 . Machines Repaired . | . . . Machines Dismantled . | . . . Machines Sabotaged . | . . . Overloaded Fab Kills . | . . . Hacking | -11 -10 -10 --------- Run | Yrd Mat Min Machines Accessed . | . . . Terminals . | . . . Fabricators . | . . . Repair Stations . | . . . Recycling Units . | . . . Scanalyzers . | . . . Garrison Access . | . . . Total Hacks . | . . . Successful . | . . . Failed . | . . . Catastrophic . | . . . Database Lockouts . | . . . Manual . | . . . Terminals . | . . . Fabricators . | . . . Repair Stations . | . . . Recycling Units . | . . . Scanalyzers . | . . . Garrison Access . | . . . Terminal Hacks . | . . . Fabricator Hacks . | . . . Repair Station Hacks . | . . . Recycling Unit Hacks . | . . . Scanalyzer . | . . . Garrison Access Hacks . | . . . Unauthorized Hacks . | . . . Terminals . | . . . Fabricators . | . . . Repair Stations . | . . . Recycling Units . | . . . Scanalyzers . | . . . Garrison Access . | . . . Data Cores Recovered . | . . . Used . | . . . Hacking Detections . | . . . Full Trace Events . | . . . Feedback Events . | . . . Feedback Blocked . | . . . Robot Schematics Acquired . | . . . Robots Built . | . . . Authchips . | . . . Time . | . . . Total Robot Build Rating . | . . . Part Schematics Acquired . | . . . Parts Built . | . . . Authchips . | . . . Time . | . . . Total Part Build Rating . | . . . Part Studies Acquired . | . . . Parts Repaired . | . . . Time . | . . . Parts Recycled . | . . . Recycled Matter . | . . . Retrieved Matter . | . . . Retrieved Components . | . . . Parts Scanalyzed . | . . . Part Schematics Acquired . | . . . Parts Damaged . | . . . Bothacking | -11 -10 -10 ------------ Run | Yrd Mat Min Used RIF Installer . | . . . Robots Hacked . | . . . Non-combat . | . . . Combat . | . . . Robot Hacks Applied . | . . . Relay Couplers Released . | . . . Fabnet Peak Effective % . | . . . Robots Rewired . | . . . Allies Hacked . | . . . Hacks Repelled . | . . . Allies | -11 -10 -10 -------- Run | Yrd Mat Min Total Allies . | . . . Largest Group . | . . . Highest-Rated Group . | . . . Highest-Rated Ally . | . . . Total Orders . | . . . Ally Attacks . | . . . Total Damage . | . . . Kills . | . . . Allies Corrupted . | . . . Allies Melted . | . . . Intel | -11 -10 -10 ------- Run | Yrd Mat Min Active Infowar (turns) . | . . . Robot Analysis Total . | . . . Derelict Logs Recovered . | . . . Drone Launches . | . . . Drone Recoveries . | . . . Exploration | -11 -10 -10 ------------- Run | Yrd Mat Min Turns Passed 490 | 94 355 41 Spaces Moved 347 | 83 255 9 Core 33 | 33 . . Treads . | . . . Legs 314 | 50 255 9 Wheels . | . . . Hover . | . . . Flight . | . . . Fastest Speed 50 | 50 120 120 Average Speed 113 | 92 120 120 Slowest Speed 120 | 120 120 120 Overloaded Moves . | . . . Propulsion Burnouts . | . . . Robots Hopped . | . . . Potential Cave-ins . | . . . Cave-ins Triggered . | . . . Exploration Rate (%) 16 | 4 34 10 Regions Visited 2 Branch Regions 1 Pre-discovered Areas . | . . . Known Exits Taken 2 | 1 1 . Unknown Exits Taken . | . . . Scrap Searched . | . . . Spaces Dug . | . . . Terrain Destroyed . | . . . Melee . | . . . Projectile . | . . . AOE . | . . . Terrain Rammed . | . . . Walls Destroyed . | . . . Machines Disabled . | . . . Actions | -11 -10 -10 --------- Run | Yrd Mat Min Total 399 | 99 278 22 Wait 1 | . . 1 Move 345 | 82 254 9 Hop . | . . . Pick Up 15 | 12 3 . Fast Attach 2 | 2 . . Attach 8 | 3 4 1 Detach 1 | . . 1 Swap 1 | . 1 . Drop 1 | . 1 . Fire 25 | . 15 10 Melee . | . . . Ram . | . . . Kick . | . . . Crush . | . . . Escape Stasis . | . . . Rewire . | . . . Trap . | . . . Miscellaneous . | . . . Route ------- -11/Scrapyard -10/Materials -10/Mines History --------- Turn | Location | Event 5 | -11/Scrapyard | Identified exit to Materials 5 | -11/Scrapyard | Discovered exit to Materials (range 16) 95 | -11/Scrapyard | Entered Materials 95 | -10/Materials | Evolved 1 slot: Weapon x1 427 | -10/Materials | Identified exit to Mines 427 | -10/Materials | Discovered exit to Mines (range 12) 450 | -10/Materials | Entered Mines 451 | -10/Mines | Assembled infested the area 485 | -10/Mines | Core integrity fell below 50% 488 | -10/Mines | Core integrity fell below 20% 491 | -10/Mines | Destroyed by as-07445 with Assembled Heavy Rifle Last Messages --------------- GOAL=ESCAPE Something is scanning the area. ALERT: Infestation in the mines, dispatching Demolisher response squad. as-20279 knocked back. as-67379 destroyed. as-45507 destroyed. as-42035 destroyed. as-20279 destroyed. as-83160 destroyed. Knocked back. Discarded Signal Interpreter. as-36381 knocked back. Aluminum Leg destroyed. Lgt. Ion Engine destroyed. as-36381 destroyed. Lgt. Cannon destroyed. as-92445 destroyed. as-55441 destroyed. Switching to secondary target: as-74816. Aluminum Leg destroyed. Map ----- +----------------------------------------------------+ | ??????????????????????????????????????????? | | ??????????????????????????????????????????? | | ??????????????????????????????????????????? | | ??????????????????????????????????????????? | | ??????????????????????????????????????????? | | ??????????????????????????????????????????? | | ??????????????????????????????????????????? | | ??????????????????????????????????????????? | | ??????????????????????????????????????????? | | ??????????????????????????????????????????? | | ??????????????????????????????????????????? | | ?????????????????????????#????????????????? | | ???????????????????????? ###??????????????? | | ???????????????????????$ ##?????????????? | | ??????????????????##### #?????????????? | | ?????????????????## #?????????????? | | ???????????####### #??????????????? | | ???????????# ###??????????????? | | ???????????# ###????????????????? | | ???????????# ###a ##??????????????????? | | ???????????#????# ##???????????????????? | | ???????????# ???# ###??##????????????????? | | ???? ?????# ###a #### ?????????????????? | | ?# # aa% t # ?????????? | | ?# %a %a% %%a ?????????? | | ??# % a a@#### #????????????????? | | ??# a a a ##??????????????????????? | | ??# ### %#???????????????????????? | | ??# ???## ##???????????????????????? | | ???# ?????####????????????????????????? | | ???## ???????????????????????????????????? | | ????##????????????????????????????????????? | | ??????????????????????????????????????????? | | ??????????????????????????????????????????? | | ??????????????????????????????????????????? | | ??????????????????????????????????????????? | | ??????????????????????????????????????????? | | ??????????????????????????????????????????? | | ??????????????????????????????????????????? | | ??????????????????????????????????????????? | | ??????????????????????????????????????????? | | ??????????????????????????????????????????? | | ??????????????????????????????????????????? | | ??????????????????????????????????????????? | | ??????????????????????????????????????????? | | ??????????????????????????????????????????? | | ??????????????????????????????????????????? | | ??????????????????????????????????????????? | | ??????????????????????????????????????????? | | ??????????????????????????????????????????? | +----------------------------------------------------+ Best States ------------- Heat Dissipation 25 Energy Generation 10 Energy Capacity 125 Matter Stores 300 Matter Capacity 300 Sight Range 16 Terrain Scan Density 10 Resistance: KI 35 Resistance: TH 35 Resistance: EX 35 Resistance: EM 35 Resistance: I 35 Resistance: S 35 Resistance: P 35 Utility Shielding 33 Evasion (%) 55 Offensive Hacking 20 Item Schematics ----------------- None Robot Schematics ------------------ None Fabricated ------------ Nothing Repaired ---------- Nothing Studied --------- None Alien Tech Used ----------------- None Achievements -------------- DATA ERROR: Steam Global Achievement% Organ Harvest Challenges ------------ None Game ------ Seed DroneFactoryBotcube Manual? 0 Play Time 00:15:11 Cumulative 1.3 hours Start 2026.07.28 @ 00:01:31 End 2026.07.28 @ 00:15:57 Sessions 1 Manual Loads 0 Difficulty Explorer Special Mode None Game No. 4 Rogue 0 Adventurer 0 Explorer 4 Win Type - Total 0 Types 0/0/0/0/0/0/0/0/0/0 Lore% 0 Gallery% 3 Achievement% 2 Wizard Run 0 Options --------- Layout 1 ASCII 0 Keyboard 0 Movement Mouse Keybinds 0 Fullscreen 1 Font 32/SmallcapsGlow Map View 77x35 Zoom Use 0% Tactical HUD 0 Map Filters NONE Filters NONE Steam SD RUN: 657bd365-7861-43d3-b2cd-60fc843bd2ae